bitfinex-derivatives/quotes_ETHF0:USTF0_20260310
["timestamp","ask_amount","ask_price","bid_price","bid_amount"]
[1773146927123,1.59039701,2051.3,2050.4,1.89320397]
[1773146930020,1.59039701,2051.3,2050.5,1.89320397]
[1773146938925,1.83413701,2051.3,2050.5,1.89320397]
[1773146940328,1.50643923,2051.1,2050.5,1.89320397]
[1773146940924,1.50582924,2051.0,2050.3,1.89320397]
[1773146950534,1.74959924,2051.0,2050.3,1.89320397]
[1773146950929,1.74959924,2051.0,2050.0,2.0491039]
[1773146952128,1.84216789,2050.8,2050.0,2.0491039]
[1773146957733,1.59837789,2050.8,2050.0,2.0491039]
[1773146958033,4.28471621,2051.2,2050.0,2.0491039]
[1773146958034,1.5142879,2051.1,2050.0,2.0491039]
[1773146959338,1.50953893,2050.9,2050.0,2.0491039]
[1773146967141,0.24377,2051.0,2050.0,2.0491039]
[1773146967436,7.90634929,2051.1,2050.0,2.0491039]
[1773146968137,1.5114495,2051.0,2050.0,2.0491039]
[1773146969037,6.387,2051.1,2050.3,2.0491039]
[1773146969434,1.50715274,2051.0,2050.3,2.0491039]
[1773146971539,6.07195136,2051.5,2050.1,8.28894585]
[1773146971540,1.48991083,2051.5,2051.0,2.0491039]
[1773146972835,1.49489203,2051.5,2051.0,2.05531938]
[1773146973042,1.48483449,2051.4,2051.0,2.05531938]
[1773146973442,1.90692705,2051.5,2051.0,2.05531938]
[1773146973443,0.0049812,2051.5,2051.0,2.05531938]
[1773146974342,0.0049812,2051.5,2051.1,2.03572881]
[1773146974644,1.48483449,2051.7,2051.1,2.03572881]
[1773146975535,1.49000096,2051.7,2051.1,2.03572881]
[1773146978647,1.49000096,2051.7,2051.0,2.04194429]
[1773146978850,1.33504805,2051.5,2051.0,0.00112817]
[1773146979249,1.33504805,2051.5,2050.9,2.03572881]
[1773146979943,0.2437,2051.6,2050.9,2.03572881]
[1773146980146,1.33193099,2051.6,2050.9,2.03572881]
[1773146980352,0.00516647,2051.7,2050.9,2.04003111]
[1773146981046,1.33351905,2051.7,2050.9,2.04003111]
[1773146984345,1.25475286,2051.2,2050.3,2.03572881]
[1773146984650,1.25475286,2051.6,2050.3,2.27957881]
[1773146985448,1.25475286,2051.6,2050.3,2.28538501]
[1773146990358,1.25475286,2051.6,2050.6,2.01030457]
[1773146997661,1.25475286,2051.6,2050.9,2.01030457]
[1773147006573,1.25475286,2051.6,2051.0,1.89564631]
[1773147006769,5.10107958,2052.1,2051.6,1.89564631]
[1773147007068,1.06011337,2052.2,2051.6,1.89564631]
[1773147007273,1.06011337,2052.0,2051.2,1.89564631]
[1773147007669,1.05753701,2051.8,2051.2,1.89564631]
[1773147007868,1.06204313,2051.8,2051.2,1.89564631]
[1773147010175,1.03594625,2051.6,2051.2,1.89564631]
[1773147015079,1.90527565,2051.8,2051.2,1.89564631]
[1773147015281,0.00450612,2051.8,2051.4,1.89564631]
[1773147017084,1.01655398,2051.8,2051.4,1.89564631]
[1773147018085,0.00450612,2051.8,2051.4,1.89564631]
[1773147018282,1.01241593,2051.8,2051.4,1.89564631]
[1773147018684,0.00450612,2051.8,2051.4,1.89564631]
[1773147019789,0.99419577,2051.8,2051.4,1.89564631]
[1773147020690,0.00450612,2051.8,2051.4,1.89564631]
[1773147021289,0.99020315,2051.8,2051.4,1.89564631]
[1773147021793,0.99020315,2051.8,2051.0,1.89564631]
[1773147021794,2.88242651,2051.7,2051.0,1.89564631]
[1773147021994,0.98165698,2051.6,2051.0,1.89564631]
[1773147022394,0.98165698,2051.7,2051.0,1.89564631]
[1773147023193,0.00450612,2051.8,2051.0,1.89564631]
[1773147023794,0.00450612,2051.8,2051.2,1.89564631]
[1773147023991,6.91805121,2052.3,2051.4,1.89564631]
[1773147024295,6.13194299,2052.2,2051.6,1.89564631]
[1773147024494,0.97631547,2052.2,2051.6,1.89564631]
[1773147024997,0.98058424,2052.2,2051.6,1.89564631]
[1773147025598,0.00426877,2052.2,2051.6,1.89564631]
[1773147027996,1.21054666,2052.5,2051.6,1.89564631]
[1773147028998,1.21624035,2052.5,2051.6,1.89564631]
[1773147029189,0.00569369,2052.5,2051.6,1.89564631]
[1773147030101,0.96970949,2052.5,2051.8,1.89564631]
[1773147030300,0.96970949,2052.5,2051.8,1.89929069]
[1773147031097,0.96045934,2052.3,2051.8,1.89929069]
[1773147031297,0.2436,2052.4,2051.8,1.89929069]
[1773147031492,1.70470934,2052.2,2051.8,1.89929069]
[1773147031899,1.70470934,2052.2,2051.8,0.00364438]
[1773147032095,1.70470934,2052.2,2051.6,1.89564631]
[1773147032995,1.70470934,2052.2,2051.6,1.90004542]
[1773147034097,1.46108934,2052.2,2051.6,1.90004542]
[1773147035003,1.70470934,2052.2,2051.6,1.90004542]
[1773147036801,1.46108934,2052.2,2051.6,1.90004542]
[1773147037102,1.37481851,2052.4,2051.6,1.90004542]
[1773147038804,0.00569369,2052.5,2051.6,1.90004542]
[1773147041009,1.3595716,2052.5,2051.6,1.90004542]
[1773147042008,0.00569369,2052.5,2051.6,1.90004542]
[1773147044011,1.33845559,2052.5,2051.6,1.90004542]
[1773147046812,1.33845559,2052.5,2051.7,1.78076049]
[1773147050906,1.30853674,2052.3,2051.7,1.78076049]
[1773147052014,1.30853674,2052.3,2051.6,1.7851596]
[1773147052208,0.2436,2052.4,2051.6,1.7851596]
[1773147052209,1.29967638,2052.1,2051.6,1.7851596]
[1773147054013,1.29583526,2051.9,2051.4,1.78076049]
[1773147054216,1.29583526,2051.9,2050.8,1.78076049]
[1773147055117,1.29583526,2051.9,2050.8,1.78558013]
[1773147055611,0.24365,2052.0,2050.9,1.78076049]
[1773147055817,1.29110634,2052.0,2050.9,1.78076049]
[1773147056418,6.384,2052.2,2051.2,1.78076049]
[1773147056419,1.27860429,2052.1,2051.2,1.78076049]
[1773147057518,7.66037736,2052.2,2051.2,1.78076049]
[1773147058217,1.27482806,2052.1,2051.2,1.78076049]
[1773147063622,1.51846806,2052.1,2051.2,1.78076049]
[1773147064523,1.2727214,2051.9,2051.2,1.78076049]
[1773147066319,1.51021153,2052.1,2051.2,1.78076049]
[1773147070325,1.26657153,2052.1,2051.2,1.78076049]
[1773147070520,1.3021781,2052.4,2051.2,1.78076049]
[1773147070824,4.0634429,2052.5,2051.2,1.78076049]
[1773147070825,1.30014534,2052.2,2051.2,1.78076049]
[1773147071022,1.30027386,2052.0,2051.2,1.78076049]
[1773147075030,1.29994157,2051.8,2051.2,1.78076049]
[1773147080731,0.24368,2051.7,2051.1,1.82772114]
[1773147081033,1.31460724,2051.6,2051.1,1.82772114]
[1773147085629,1.31460724,2051.6,2050.9,1.82772114]
[1773147086136,1.31135591,2051.4,2050.9,1.82772114]
[1773147088728,0.24371,2051.5,2050.9,1.82772114]
[1773147089038,1.37241343,2051.6,2050.9,1.82772114]
[1773147089238,1.61613654,2051.9,2050.9,1.82772114]
[1773147089437,7.47652985,2051.8,2050.9,1.82772114]
[1773147089638,1.37247654,2051.8,2050.9,1.82772114]
[1773147089838,1.60787648,2051.9,2050.9,1.82772114]
[1773147092535,1.3678798,2051.7,2050.9,1.82772114]
[1773147093740,1.36359915,2051.5,2050.9,1.82772114]
[1773147094341,3.51911974,2051.6,2050.9,1.82772114]
[1773147094532,1.61813449,2051.6,2050.9,1.82772114]
[1773147096242,1.3708323,2051.5,2050.9,1.82772114]
[1773147097138,1.36924654,2051.3,2050.9,1.82772114]
[1773147097345,1.90098525,2051.5,2050.9,1.82772114]
[1773147097545,1.61294654,2051.6,2050.9,1.82772114]
[1773147097847,1.36760264,2051.4,2050.9,1.82772114]
[1773147098347,1.34721505,2051.2,2050.9,1.82772114]
[1773147098543,1.34721505,2051.2,2050.9,1.75586779]
[1773147098744,1.70877778,2051.3,2050.9,1.75586779]
[1773147101946,1.95247778,2051.6,2050.9,1.75586779]
[1773147102453,3.60976303,2051.5,2050.9,1.75586779]
[1773147105356,1.70877778,2051.4,2050.9,1.75586779]
[1773147108363,1.74897163,2051.7,2051.0,1.74732343]
[1773147108562,1.74897163,2051.7,2051.2,1.74732343]
[1773147108862,1.74897163,2051.9,2051.2,1.74732343]
[1773147109063,7.86100951,2051.8,2051.2,1.74732343]
[1773147109361,1.74897163,2051.8,2051.2,1.74732343]
[1773147110864,8.37862163,2052.0,2051.2,1.74732343]
[1773147111065,7.86280343,2051.9,2051.2,1.74732343]
[1773147111266,1.74897163,2051.9,2051.2,1.74732343]
[1773147113366,1.90098525,2051.8,2051.2,1.74732343]
[1773147113770,1.74897163,2052.0,2051.3,1.74732343]
[1773147115269,1.99260163,2052.2,2051.5,1.74732343]
[1773147115665,1.74897163,2052.1,2051.5,1.74732343]
[1773147115863,1.74897163,2051.9,2051.5,1.74732343]
[1773147122971,1.74897163,2052.1,2051.5,1.74732343]
[1773147123172,1.74897163,2052.1,2051.6,1.90098525]
[1773147123371,1.99260163,2052.2,2051.7,1.74732343]
[1773147124274,1.74897163,2052.2,2051.7,1.74732343]
[1773147124474,1.78840616,2052.3,2051.7,1.74732343]
[1773147125275,1.78840616,2052.4,2051.9,1.67561646]
[1773147126077,1.79409985,2052.5,2052.1,1.67561646]
[1773147130080,1.78840616,2052.6,2052.1,1.67561646]
[1773147131176,1.79449654,2052.6,2052.1,1.67561646]
[1773147131984,1.79449654,2052.6,2051.9,1.67561646]
[1773147132977,1.78840616,2052.3,2051.9,1.67561646]
[1773147133178,1.78840616,2052.4,2051.9,1.67561646]
[1773147133374,1.78840616,2052.5,2051.9,1.67561646]
[1773147134782,1.78840616,2052.4,2051.9,1.67561646]
[1773147142084,1.78840616,2052.2,2051.6,1.67561646]
[1773147142287,1.78840616,2052.0,2051.6,1.67561646]
[1773147142789,1.78840616,2051.8,2051.2,1.67561646]
[1773147143087,1.56037731,2051.8,2051.2,1.67561646]
[1773147144182,1.78840616,2052.0,2051.4,1.67561646]
[1773147145982,2.14463525,2052.1,2051.4,1.67561646]
[1773147146282,1.78840616,2052.0,2051.4,1.67561646]
[1773147147088,1.78840616,2051.6,2051.0,1.67561646]
[1773147147288,1.78840616,2051.6,2051.1,1.67561646]
[1773147147489,1.78840616,2051.8,2051.1,1.67561646]
[1773147153399,1.78840616,2051.7,2051.1,1.67561646]
[1773147156098,0.24366,2051.9,2050.8,0.00481964]
[1773147156099,1.84830324,2051.2,2050.8,0.00481964]
[1773147156307,1.84830324,2051.5,2050.8,1.75028624]
[1773147156603,1.84830324,2051.5,2050.1,1.75028624]
[1773147157100,1.84830324,2051.3,2050.3,1.75028624]
[1773147157307,1.84830324,2051.3,2050.3,1.75390781]
[1773147161906,1.84830324,2051.3,2050.5,1.75028624]
[1773147163210,1.84830324,2051.6,2050.5,1.75028624]
[1773147163609,6.386,2051.7,2050.3,1.75390781]
[1773147163610,1.84830324,2051.2,2050.3,1.75390781]
[1773147164408,3.74883079,2051.0,2050.3,0.00362157]
[1773147164713,1.84830324,2050.8,2050.1,1.75028624]
[1773147165011,1.84830324,2050.8,2049.6,1.75028624]
[1773147165712,1.84830324,2050.8,2049.6,1.75644923]
[1773147166612,1.68193537,2050.6,2049.6,1.75644923]
[1773147171715,1.68193537,2050.9,2049.6,1.75644923]
[1773147176227,6.39223425,2051.0,2049.6,1.75644923]
[1773147176228,1.68193537,2050.7,2049.6,1.75644923]
[1773147179425,1.68193537,2050.7,2049.6,2.00036923]
[1773147183833,1.68193537,2050.7,2049.9,0.24389]
[1773147184136,1.69570158,2050.9,2050.0,1.80691516]
[1773147193246,1.69570158,2050.9,2050.3,1.80691516]
[1773147197151,1.36956299,2051.0,2050.3,1.80691516]
[1773147197646,6.38833601,2051.1,2050.6,1.85124053]
[1773147197846,6.387,2051.1,2050.6,1.85124053]
[1773147198046,0.04653899,2051.2,2050.6,1.85124053]
[1773147198852,0.05060946,2051.2,2050.6,1.85124053]
[1773147200255,0.05060946,2051.2,2050.2,0.24385]
[1773147200453,0.05633094,2051.0,2050.3,1.82609029]
[1773147208150,0.00182937,2050.8,2050.3,1.82609029]
[1773147209365,0.00387029,2051.1,2050.3,1.82609029]
[1773147209655,0.00387029,2050.9,2050.3,1.82609029]
[1773147210556,4.05430084,2051.2,2050.3,1.82609029]
[1773147210756,6.11181464,2051.1,2050.3,1.82609029]
[1773147210957,6.39107047,2051.2,2050.3,1.82609029]
[1773147211864,6.4409498,2051.2,2050.3,1.82609029]
[1773147213968,6.39107047,2051.2,2050.3,1.82609029]
[1773147214266,5.50677139,2051.2,2050.6,1.83397639]
[1773147214462,0.07209116,2051.5,2050.6,1.83397639]
[1773147214662,7.20833989,2051.6,2050.6,1.83397639]
[1773147214863,6.11147387,2051.5,2050.6,1.83397639]
[1773147215165,7.20833989,2051.6,2050.6,1.83397639]
[1773147215365,6.10857575,2051.5,2050.6,1.83397639]
[1773147215566,7.21243973,2051.6,2051.0,1.70557379]
[1773147215767,6.93236615,2051.5,2051.0,1.70557379]
[1773147215967,0.82379032,2051.5,2051.0,1.70557379]
[1773147219561,6.39109984,2051.6,2051.0,1.70557379]
[1773147220164,6.39109984,2051.6,2051.2,1.70557379]
[1773147220470,0.00409984,2051.6,2051.2,1.7115999]
[1773147221567,0.85014086,2051.6,2051.2,1.7115999]
[1773147222570,0.85014086,2051.6,2051.2,0.00602611]
[1773147223069,0.85014086,2051.6,2051.2,1.7115999]
[1773147223567,0.00409984,2051.6,2051.2,1.7115999]
[1773147224667,2.76282172,2051.6,2051.2,0.00602611]
[1773147224872,2.76096228,2051.4,2051.0,1.70557379]
[1773147225368,0.86029474,2051.4,2051.0,1.70557379]
[1773147225574,0.00409984,2051.6,2051.0,1.70557379]
[1773147225873,0.86657864,2051.6,2051.0,1.70943772]
[1773147226070,0.00409984,2051.6,2051.2,1.81172704]
[1773147226274,7.24999508,2052.1,2051.4,1.81172704]
[1773147226473,0.86399508,2052.0,2051.4,1.81172704]
[1773147227273,0.86784928,2052.0,2051.4,1.81172704]
[1773147227474,0.86608089,2051.8,2051.4,1.81172704]
[1773147229177,0.0038542,2052.0,2051.4,1.81172704]
[1773147229381,0.0038542,2052.0,2051.6,1.81172704]
[1773147229977,0.81547539,2052.0,2051.6,1.81172704]
[1773147230179,1.90452174,2052.0,2051.6,1.81172704]
[1773147230582,2.71614293,2052.0,2051.6,1.81172704]
[1773147231285,1.56941482,2052.5,2051.6,1.81172704]
[1773147231481,1.56941482,2052.5,2052.0,1.81172704]
[1773147231678,1.56941482,2052.5,2051.3,0.24373]
[1773147231679,1.57201775,2052.1,2051.6,1.81172704]
[1773147232285,1.57668037,2052.1,2051.6,1.81172704]
[1773147233294,1.61047801,2052.6,2052.0,1.81172704]
[1773147234282,1.61416173,2052.6,2052.0,1.81172704]
[1773147234890,1.54306528,2052.6,2052.0,1.81172704]
[1773147235290,0.00368372,2052.6,2052.0,1.81172704]
[1773147236090,1.51494777,2052.5,2052.0,1.81172704]
[1773147236293,3.41561531,2052.4,2052.0,1.81172704]
[1773147238791,1.51633772,2052.3,2052.0,1.81172704]
[1773147238990,3.41689374,2052.2,2051.9,1.81172704]
[1773147239490,1.5162262,2052.1,2051.4,1.81172704]
[1773147239889,3.45098197,2052.2,2051.5,1.81172704]
[1773147240192,7.93531443,2052.2,2051.5,1.81172704]
[1773147240692,1.55031443,2052.2,2051.5,1.81172704]
[1773147240890,1.55258515,2052.1,2051.5,1.81172704]
[1773147241393,1.55258515,2052.2,2051.5,1.81172704]
[1773147241594,1.55258515,2052.1,2051.5,1.81172704]
[1773147242591,7.93986317,2052.3,2051.5,1.81172704]
[1773147243088,1.55477398,2052.2,2051.5,1.81172704]
[1773147243791,6.385,2052.3,2051.5,1.81172704]
[1773147243992,7.94264368,2052.5,2051.5,1.81172704]
[1773147244686,1.55901784,2052.6,2051.5,1.81172704]
[1773147244886,7.94401784,2052.6,2051.5,1.81172704]
[1773147245086,6.38868372,2052.6,2051.5,1.81172704]
[1773147245689,6.38868372,2052.6,2051.7,1.72562743]
[1773147246085,7.90948959,2052.6,2051.7,1.72562743]
[1773147246288,1.52080587,2052.5,2051.7,1.72562743]
[1773147247790,6.38868372,2052.6,2051.7,1.72562743]
[1773147247791,1.52502962,2052.3,2051.7,1.72562743]
[1773147250290,1.52502962,2052.3,2051.1,1.72562743]
[1773147250694,1.52502962,2052.3,2051.3,1.72562743]
[1773147250996,1.53460475,2052.1,2051.3,1.72562743]
[1773147253198,1.53670357,2052.3,2051.3,1.72562743]
[1773147253698,1.53670357,2052.3,2051.5,1.72562743]
[1773147256992,7.92282396,2052.4,2051.5,1.72562743]
[1773147257597,1.53882396,2052.5,2051.5,1.72562743]
[1773147258092,7.92824446,2052.6,2051.7,1.72562743]
[1773147259200,1.54235128,2052.5,2051.7,1.72562743]
[1773147259599,6.38768372,2052.6,2051.7,1.72562743]
[1773147260002,7.93189161,2052.6,2051.7,1.72562743]
[1773147260808,6.38768372,2052.6,2051.7,1.72562743]
[1773147261107,1.56035668,2052.5,2051.7,1.72562743]
[1773147263408,0.00368372,2052.6,2051.7,1.72562743]
[1773147263808,1.56812222,2052.6,2051.7,1.72562743]
[1773147264008,1.56543891,2052.4,2051.7,1.72562743]
[1773147265508,1.81071177,2052.5,2051.7,1.72562743]
[1773147265806,1.56886271,2052.3,2051.3,1.72562743]
[1773147268612,1.56886271,2052.3,2051.5,1.72562743]
[1773147274212,1.61686289,2052.4,2051.5,1.72562743]
[1773147274611,1.61839594,2052.2,2051.5,1.72562743]
[1773147281611,8.00675888,2052.4,2051.5,1.72562743]
[1773147281814,6.384,2052.4,2051.5,1.72562743]
[1773147282513,8.00789207,2052.4,2051.5,1.72562743]
[1773147282913,1.62529178,2052.3,2051.5,1.72562743]
[1773147283815,8.01062065,2052.4,2051.5,1.72562743]
[1773147284613,1.63451812,2052.3,2051.5,1.72562743]
[1773147292425,1.56146963,2052.1,2051.5,1.72562743]
[1773147300131,1.80510963,2052.1,2051.1,1.78284155]
[1773147300332,1.56597001,2051.9,2051.1,1.78284155]
[1773147300532,1.56597001,2051.8,2051.1,1.78284155]
[1773147302429,6.384,2051.9,2051.1,1.78284155]
[1773147302828,7.93929614,2052.2,2051.3,1.78284155]
[1773147303436,1.55522365,2052.1,2051.3,1.78284155]
[1773147305029,6.384,2052.2,2051.3,1.78284155]
[1773147305237,7.91348357,2052.2,2051.3,1.78284155]
[1773147305735,1.53054505,2052.1,2051.3,1.78284155]
[1773147308140,6.384,2052.2,2051.3,1.78284155]
[1773147308335,1.54802548,2052.1,2051.3,1.78284155]
[1773147310941,1.55145323,2052.4,2051.3,1.78284155]
[1773147311139,14.04668015,2052.3,2051.3,1.78284155]
[1773147311433,1.55145323,2052.2,2051.3,1.78284155]
[1773147312637,6.385,2052.3,2051.3,1.78284155]
[1773147312836,7.93066727,2052.3,2051.3,1.78284155]
[1773147313841,7.93066727,2052.3,2051.4,1.89747567]
[1773147314339,1.55058433,2052.2,2051.4,1.89747567]
[1773147328452,1.79421433,2052.2,2051.4,1.89747567]
[1773147328653,1.52372817,2052.0,2051.1,1.89747567]
[1773147329051,1.52379876,2051.8,2051.1,1.89747567]
[1773147335558,1.52379876,2051.8,2051.2,1.80323693]
[1773147336753,7.90054579,2051.9,2051.2,1.80323693]
[1773147336960,6.385,2051.9,2051.4,1.80323693]
[1773147337158,1.51554579,2052.0,2051.6,1.80323693]
[1773147337354,3.41602721,2052.2,2051.6,1.80323693]
[1773147337553,1.51560978,2052.1,2051.6,1.80323693]
[1773147339551,1.50749083,2052.2,2051.8,1.80323693]
[1773147339753,7.89160543,2052.3,2051.8,1.80323693]
[1773147339953,1.5041445,2052.2,2051.8,1.80323693]
[1773147347668,7.8891445,2052.2,2051.8,1.80323693]
[1773147347869,1.51321164,2052.1,2051.8,1.80323693]
[1773147348571,6.385,2052.2,2051.8,1.80323693]
[1773147349070,6.385,2052.4,2051.8,1.80323693]
[1773147349271,1.52453092,2052.5,2051.8,3.70365436]
[1773147349473,7.90953092,2052.5,2051.9,1.7747205]
[1773147349873,1.52375683,2052.1,2051.6,1.7747205]
[1773147350177,1.52375683,2052.1,2051.1,1.7747205]
[1773147350369,1.90041743,2052.2,2051.1,1.7747205]
[1773147350370,3.42264728,2051.7,2051.1,1.7747205]
[1773147350671,1.52222985,2051.6,2051.1,1.7747205]
[1773147352071,1.52222985,2051.6,2050.5,16.76274904]
[1773147352072,1.52222985,2051.6,2050.9,1.7747205]
[1773147352272,1.54155196,2051.5,2050.9,1.7747205]
[1773147352975,1.54155196,2051.5,2050.9,1.77949462]
[1773147355077,1.53185718,2051.6,2051.1,1.7747205]
[1773147355279,6.385,2051.7,2051.3,1.7747205]
[1773147355667,7.91613299,2051.8,2051.5,1.7747205]
[1773147356477,1.53112326,2051.7,2051.3,1.7747205]
[1773147358577,7.97110251,2051.8,2051.3,1.7747205]
[1773147358778,1.5854029,2051.7,2051.3,1.7747205]
[1773147359779,1.5854029,2051.7,2051.2,1.7747205]
[1773147359976,1.90041743,2051.5,2051.0,1.7747205]
[1773147360180,1.59406213,2051.4,2051.0,1.7747205]
[1773147361982,1.59406213,2051.4,2050.9,1.77949462]
[1773147362378,1.59685572,2051.3,2050.9,1.77949462]
[1773147362579,1.59685572,2051.2,2050.7,1.7747205]
[1773147362779,1.59685572,2051.2,2050.6,1.7747205]
[1773147363181,1.59685572,2051.2,2050.4,3.67513793]
[1773147363581,1.59685572,2051.2,2050.4,3.67931316]
[1773147364282,1.59685572,2051.2,2050.5,1.90888532]
[1773147366987,1.60847531,2051.0,2050.5,1.90888532]
[1773147367187,1.61275212,2051.0,2050.5,1.90888532]
[1773147368787,1.60442869,2050.8,2050.4,1.91306055]
[1773147368988,1.60442869,2050.8,2050.4,0.00417523]
[1773147370289,1.60442869,2050.8,2050.4,1.91306055]
[1773147373096,1.60442869,2050.8,2050.4,0.00417523]
[1773147373992,1.60442869,2050.8,2050.4,1.91306055]
[1773147374292,1.60442869,2050.8,2050.2,1.90888532]
[1773147375293,1.60442869,2050.8,2050.2,1.9134364]
[1773147379800,1.66689113,2050.6,2050.2,0.00455108]
[1773147380700,1.66689113,2050.6,2050.2,1.9134364]
[1773147381300,1.66689113,2050.6,2050.2,0.00455108]
[1773147382601,1.66689113,2050.6,2050.2,1.9134364]
[1773147382804,1.66689113,2050.6,2050.2,0.00455108]
[1773147384200,1.66689113,2050.6,2049.8,1.90888532]
[1773147384396,1.65685021,2050.4,2049.8,1.90888532]
[1773147385306,1.65685021,2050.4,2049.8,1.91276433]
[1773147387408,1.65685021,2050.4,2049.9,1.90888532]
[1773147388309,1.65685021,2050.4,2050.1,1.90888532]
[1773147388310,6.387,2050.4,2050.1,1.90888532]
[1773147388512,6.387,2050.7,2050.3,1.90888532]
[1773147388702,5.67480485,2050.8,2050.6,1.90888532]
[1773147388907,0.00427681,2051.0,2050.6,1.90888532]
[1773147389210,1.4902885,2050.9,2050.4,1.90888532]
[1773147389508,1.4902885,2050.9,2050.1,1.90041743]
[1773147389709,1.4902885,2050.9,2050.2,1.90888532]
[1773147393014,1.4902885,2050.9,2050.4,1.90888532]
[1773147393213,6.39127681,2051.0,2050.4,1.90888532]
[1773147393414,7.8846783,2051.0,2050.4,1.90888532]
[1773147393609,7.8846783,2051.0,2050.3,1.90041743]
[1773147393610,6.39127681,2051.0,2050.7,1.85748067]
[1773147393815,1.82081131,2050.9,2050.4,1.85748067]
[1773147398312,1.82081131,2050.9,2050.0,1.9018398]
[1773147398518,1.82081131,2050.9,2050.2,1.85748067]
[1773147400118,2.06460131,2050.9,2050.2,1.85748067]
[1773147400515,1.82081131,2050.6,2049.8,1.86135968]
[1773147400711,1.82081131,2050.4,2049.8,1.86135968]
[1773147401115,1.82081131,2050.2,2049.5,1.85748067]
[1773147401516,1.82081131,2050.0,2049.5,1.85748067]
[1773147402116,1.82081131,2050.0,2049.5,1.86236252]
[1773147404423,1.82081131,2050.0,2049.5,0.00488185]
[1773147405113,1.82081131,2050.0,2049.5,1.86236252]
[1773147406117,6.387,2050.1,2049.5,1.86236252]
[1773147407124,1.8713795,2050.4,2049.5,1.86236252]
[1773147407323,1.8713795,2050.1,2049.5,1.86236252]
[1773147411622,1.8713795,2050.1,2049.5,0.00488185]
[1773147412426,1.8713795,2049.9,2049.3,1.84402243]
[1773147413124,1.8713795,2049.6,2048.5,10.13392904]
[1773147413329,1.8713795,2049.4,2047.9,1.84402243]
[1773147413527,1.8713795,2049.1,2048.0,1.84402243]
[1773147415627,1.8713795,2048.9,2048.0,1.84402243]
[1773147415819,1.8713795,2048.7,2048.0,1.84402243]
[1773147417221,1.8713795,2048.5,2047.9,0.00542857]
[1773147417629,1.8713795,2048.5,2047.9,1.849451]
[1773147418228,1.8713795,2048.3,2047.9,1.849451]
[1773147418427,1.8713795,2047.9,2046.9,1.84402243]
[1773147418624,1.8713795,2048.1,2047.1,1.84402243]
[1773147418931,1.8713795,2048.7,2047.5,1.84402243]
[1773147419225,1.8713795,2048.7,2047.6,1.84402243]
[1773147419426,2.12118209,2048.7,2047.6,1.84816801]
[1773147421626,1.87713209,2048.7,2047.6,1.84816801]
[1773147422223,1.8713795,2049.8,2048.2,1.84402243]
[1773147422424,2.1152995,2049.8,2048.4,1.84402243]
[1773147422734,1.8713795,2049.8,2048.6,1.84402243]
[1773147423234,1.87745902,2049.8,2048.6,1.84402243]
[1773147423934,1.87745902,2049.8,2048.8,1.87341359]
[1773147424636,1.87745902,2049.8,2048.9,1.87341359]
[1773147426131,0.00607952,2049.8,2048.9,1.87341359]
[1773147426540,1.83632699,2049.8,2048.9,1.87341359]
[1773147428732,1.83024747,2049.6,2048.9,1.87341359]
[1773147429436,1.83024747,2049.6,2048.3,1.87341359]
[1773147430236,1.83024747,2049.4,2048.3,1.87341359]
[1773147436843,1.83024747,2049.7,2048.5,1.87341359]
[1773147438748,1.83024747,2049.7,2048.7,2.11744359]
[1773147438941,1.83024747,2049.7,2048.8,1.87341359]
[1773147439944,1.83024747,2049.7,2048.8,8.26041359]
[1773147440149,1.83024747,2049.7,2048.9,1.87341359]
[1773147440351,2.07417747,2049.7,2048.9,1.87341359]
[1773147441741,2.07417747,2049.7,2048.4,1.87341359]
[1773147441951,1.83024747,2049.2,2048.4,1.87341359]
[1773147442356,2.07422747,2049.3,2048.4,1.87341359]
[1773147442654,2.07422747,2049.3,2048.5,1.87341359]
[1773147449352,1.83024747,2049.3,2048.5,1.87341359]
[1773147449559,1.83024747,2049.7,2048.5,1.87341359]
[1773147450852,1.83024747,2049.7,2048.7,1.87341359]
[1773147451058,1.83024747,2049.5,2048.7,1.87341359]
[1773147451761,1.83024747,2049.3,2048.5,1.87341359]
[1773147454264,1.83024747,2049.3,2048.6,1.73853852]
[1773147455559,1.84289216,2049.5,2048.6,1.73853852]
[1773147455764,4.03130915,2049.7,2048.6,1.73853852]
[1773147455765,1.84289216,2049.7,2048.6,1.73853852]
[1773147455966,7.93932631,2049.6,2048.8,1.73853852]
[1773147456164,1.84289216,2049.5,2048.8,1.73853852]
[1773147456664,1.84289216,2049.7,2048.8,1.73853852]
[1773147460360,0.00607952,2049.8,2048.8,1.73853852]
[1773147460361,1.84897168,2049.8,2048.8,1.73853852]
[1773147461563,1.84897168,2049.8,2049.0,1.73853852]
[1773147461766,0.00607952,2049.8,2049.0,1.73853852]
[1773147461967,1.84289216,2050.0,2049.2,1.73853852]
[1773147462964,1.84289216,2050.0,2049.2,1.74414642]
[1773147463165,1.84693569,2050.0,2049.2,1.74414642]
[1773147467973,0.00404353,2050.0,2049.2,1.74414642]
[1773147468273,1.77771914,2050.0,2049.2,1.74414642]
[1773147470777,1.77367561,2049.8,2049.2,1.74414642]
[1773147471772,2.01759561,2049.7,2048.7,1.75451322]
[1773147472675,2.01759561,2049.7,2048.7,1.76038317]
[1773147477071,1.77367561,2049.5,2048.7,1.76038317]
[1773147479580,1.90520056,2049.2,2048.7,1.76038317]
[1773147480080,3.67887617,2049.2,2048.7,1.76038317]
[1773147480375,1.90520056,2049.2,2048.7,1.76038317]
[1773147480578,1.77367561,2049.4,2048.8,1.75451322]
[1773147480778,1.77367561,2049.5,2048.8,1.75451322]
[1773147481475,1.90520056,2049.2,2048.8,1.75451322]
[1773147481678,1.77367561,2049.2,2048.8,1.75451322]
[1773147482382,1.77367561,2049.2,2048.6,1.75451322]
[1773147483282,1.77367561,2049.0,2047.9,1.75451322]
[1773147483484,1.77367561,2049.0,2047.9,1.75914233]
[1773147483883,1.84211325,2048.8,2047.9,1.75914233]
[1773147484076,0.24402,2048.9,2047.9,1.75914233]
[1773147484077,1.84211325,2048.6,2047.9,1.75914233]
[1773147488288,1.84211325,2048.6,2047.9,1.91862899]
[1773147488986,1.84211325,2048.4,2047.9,1.91862899]
[1773147489187,1.84211325,2048.2,2047.4,1.91399988]
[1773147489580,1.84211325,2048.0,2046.9,1.91399988]
[1773147490089,1.84211325,2048.0,2046.9,1.91904665]
[1773147490283,1.84211325,2047.8,2046.9,1.91904665]
[1773147491285,1.84211325,2047.8,2046.9,0.00504677]
[1773147491485,1.84211325,2047.6,2046.9,0.00504677]
[1773147492286,1.84211325,2047.6,2046.9,1.91904665]
[1773147492891,1.84211325,2048.1,2046.9,1.91904665]
[1773147495693,0.00602074,2048.4,2047.1,1.91399988]
[1773147495694,1.84211325,2048.3,2047.1,1.91399988]
[1773147495890,1.84211325,2048.3,2047.3,1.91399988]
[1773147496289,1.84813399,2048.4,2047.3,1.91399988]
[1773147497194,1.84813399,2048.4,2047.5,1.91399988]
[1773147497493,0.00602074,2048.4,2047.5,1.91399988]
[1773147498489,0.00602074,2048.4,2047.7,1.91399988]
[1773147498791,1.84211325,2049.1,2047.7,1.91399988]
[1773147499793,1.84711462,2049.1,2047.7,1.91399988]
[1773147502593,1.84711462,2049.1,2047.9,1.91399988]
[1773147503390,1.84211325,2048.9,2047.9,1.91399988]